[Event "Rudolf Teschner GT 2022"]
[Site "Berlin"]
[Date "2022.05.29"]
[Round "7.6"]
[White "Tiarks, Jann-Christian"]
[Black "Gressmann, Moritz"]
[Result "1-0"]
[ECO "C84"]
[WhiteElo "2211"]
[BlackElo "2094"]
[Annotator "TA"]
[PlyCount "95"]
[EventDate "2022.05.25"]
[EventType "swiss"]
[EventCountry "GER"]
[SourceTitle "playchess.com"]
[Source "ChessBase"]
[SourceQuality "1"]
[TimeControl "5400+30"]

{[%evp 15,95,14,18,16,18,22,22,18,12,14,14,4,52,40,51,54,68,72,63,62,67,29,17,35,28,29,91,77,114,111,135,113,103,109,150,150,153,85,302,120,118,137,131,123,128,127,139,77,77,77,81,80,180,147,316,289,606,611,808,637,633,0,593,589,1000,976,2826,5089,2813,2506,1431,876,921,874,868,862,745,713,814,814,29979,29980]} 1. e4 {[%emt 0:00:04]} e5 {[%emt 0:00:04]} 2. Nf3 {[%emt 0:00:08]} Nc6 {[%emt 0:00:04]} 3. Bb5 {[%emt 0:00:05]} a6 {[%emt 0:00:05]} 4. Ba4 {[%emt 0:00:05]} Nf6 {[%emt 0:00:06]} 5. O-O {[%emt 0:00:06]} Be7 {[%emt 0:00:04]} 6. d3 {[%emt 0:00:05]} b5 {[%emt 0:00:11]} 7. Bb3 {[%emt 0:00:05]} d6 {[%emt 0:00:15]} 8. c3 {[%emt 0:00:12]} O-O {[%emt 0:00:07]} 9. a4 {[%emt 0:00:37] 9.h3 gains popularity. C84: Closed Ruy Lopez: Unusual White 6th moves.} Bb7 {[%emt 0:01:43]} 10. Bc2 {[%emt 0:05:10]} Nb8 {[%emt 0:02:41]} 11. axb5 {[%emt 0:05:36] The position is equal.} axb5 {[%emt 0:00:07][%cal Ba6b5,Bb5b4,Bb4a3,Ba3a2][%mdl 32]} 12. Rxa8 {[%emt 0:00:05]} Bxa8 {[%emt 0:00:05]} 13. Na3 {[%emt 0:00:20] [#]} Qe8 $146 {[%emt 0:14:05]} (13... c6 $11 {was preferrable.}) ({Predecessor:} 13... Qd7 14. Re1 Qc6 15. d4 Nbd7 16. Bd3 Rb8 17. d5 Qa6 18. Qe2 c6 19. dxc6 Bxc6 {1-0 (50) Georgakopoulos,N (2060)-Chompitakis,K (1659) Chania 2018}) 14. Re1 {[%emt 0:02:42]} c5 {[%emt 0:05:46]} 15. d4 {[%emt 0:13:22]} b4 {[%emt 0:09:38]} 16. dxe5 {[%emt 0:09:53]} bxa3 {[%emt 0:05:44]} 17. exf6 {[%emt 0:00:21]} Bxf6 {[%emt 0:00:40]} 18. Qxd6 {[%emt 0:03:24]} a2 {[%emt 0:02:30]} (18... Be7 $2 19. Qg3 $18) 19. Be3 {[%emt 0:05:15]} Bxe4 {[%emt 0:03:06]} 20. Bb3 {[%emt 0:26:22]} (20. Bxc5 $2 Bxc2 $1 21. Ra1 (21. Rxe8 $2 Rxe8 22. h3 a1=Q+ $19) 21... Nd7 22. Rxa2 Nxc5 23. Qxc5 Qb8 $19) (20. Bxe4 Qxe4 21. Nd2 (21. Bxc5 Re8 $17) (21. Qxc5 $2 Nd7 $19) 21... Qb7 22. Bxc5 Nd7 $15) 20... Be7 {[%emt 0:06:26]} (20... Bb1 $11 {keeps the balance.} 21. Bxa2 Bxa2 22. Bxc5 Be6) 21. Qc7 $16 {[%emt 0:03:42] 0x0.002d01511ce1dp-1022s more active pieces. The black rooks are badly placed.} Na6 {[%emt 0:15:25] [#]} 22. Qa5 {[%emt 0:01:22]} Qc6 {[%emt 0:07:01]} 23. Qxa2 {[%emt 0:00:33]} ({Reject} 23. Bxa2 $6 Bxf3 24. gxf3 Qg6+ 25. Kf1 (25. Kh1 Qc6 $11) 25... Qd3+ 26. Kg2 Qg6+ 27. Kh1 Qc6 $11) 23... Bxf3 {[%emt 0:01:32]} 24. gxf3 {[%emt 0:00:06]} Nc7 {[%emt 0:02:03]} 25. Bf4 {[%emt 0:01:40] A strong pair of Bishops.} Ra8 {[%emt 0:10:58]} 26. Qb1 {[%emt 0:01:29]} ({Stronger than} 26. Rxe7 Rxa2 27. Bxa2 Ne6 28. Bxe6 fxe6 $15) (26. Bxf7+ $142 Kf8 27. Qc4) 26... Bd6 $2 {[%emt 0:04:43]} (26... Ne6 $16 27. Bxe6 fxe6) 27. Bxd6 $2 {[%emt 0:05:58]} (27. Qf5 $18 {and the rest is easy.} c4 28. Bxd6 (28. Bxc4 Qxc4 29. Bxd6 Ne6 $18) 28... Qxd6 29. Bxc4) 27... Qxd6 {[%emt 0:00:01]} 28. Qf5 {[%emt 0:00:12]} Rf8 {[%emt 0:00:36]} 29. Rd1 {[%emt 0:00:27][%cal Be1d1,Bd1d7,Bd7c7][%mdl 32]} Qc6 {[%emt 0:01:41]} 30. Bc4 {[%emt 0:05:17] Black must now prevent Rd7.} g6 {[%emt 0:02:50] [#]} 31. Qe4 {[%emt 0:00:30]} (31. Qf4 $142 $1) 31... Qf6 {[%emt 0:00:28] Against Rd6} 32. Rd7 {[%emt 0:01:02]} Ne6 {[%emt 0:01:50]} 33. Bxe6 {[%emt 0:02:28]} fxe6 {[%emt 0:00:01][%mdl 4096] Endgame KQR-KQR} (33... Qxe6 $16 34. Qxe6 fxe6) 34. Kg2 {[%emt 0:00:12]} h5 $2 {[%emt 0:01:13]} (34... Qg5+ $16 35. Qg4 Qxg4+ 36. fxg4 Rb8) 35. h4 $18 {[%emt 0:00:32] Strongly threatening Rc7.} Kh8 $2 {[%emt 0:02:56]} (35... Rf7 36. Rd6 Kg7 37. Rxe6 Qf5) 36. Rc7 {[%emt 0:01:12]} Rg8 {[%emt 0:00:53]} 37. Qb7 {[%emt 0:01:17][%csl Gb7][%cal Rc7h7]} Rf8 {[%emt 0:00:24]} 38. Qe4 $40 {[%emt 0:00:16][%mdl 128] White mounts an attack.} (38. b4 $18) 38... c4 $2 {[%emt 0:00:15][%mdl 8192]} (38... Rg8 $1 $11 39. Rxc5 g5) 39. Rxc4 {[%emt 0:00:49]} g5 {[%emt 0:00:11]} 40. Rc7 {[%emt 0:00:19][%csl Gc7][%cal Re4h7]} Qh6 {[%emt 0:00:21] Inhibits Qh7+.} 41. Qe5+ {[%emt 0:00:15]} Qf6 {[%emt 0:00:41]} 42. Qxf6+ {[%emt 0:00:21]} Rxf6 {[%emt 0:00:01]} 43. hxg5 {[%emt 0:00:20] KR-KR} Rf5 {[%emt 0:00:01]} 44. b4 {[%emt 0:00:49][%cal Bb2b4,Bb4b5][%mdl 32]} Rxg5+ {[%emt 0:00:04]} 45. Kh3 {[%emt 0:00:34]} Rf5 {[%emt 0:00:11]} 46. Kg3 {[%emt 0:00:09] Hoping for c4.} h4+ {[%emt 0:01:03]} 47. Kxh4 {[%emt 0:00:09] c4 is the strong threat.} Rxf3 {[%emt 0:00:03]} 48. b5 {[%emt 0:00:23] Weighted Error Value: White=0.30/Black=0.66} 1-0